bitfinex-derivatives/quotes_ETHF0:USTF0_20250905
["timestamp","ask_amount","ask_price","bid_price","bid_amount"]
[1757090539052,0.5025,4301.9,4301.8,3.86297912]
[1757090540253,0.7048,4301.9,4301.8,3.86297912]
[1757090540958,0.3082,4301.9,4301.8,3.86297912]
[1757090541153,0.5025,4301.9,4301.8,3.86297912]
[1757090543663,0.7048,4301.9,4301.8,3.86297912]
[1757090545058,0.7048,4301.9,4301.8,4.10097912]
[1757090545364,0.3082,4301.9,4301.8,4.10097912]
[1757090547353,0.7048,4301.9,4301.8,3.86297912]
[1757090550360,4.7048,4301.9,4301.8,0.33077809]
[1757090550562,0.3082,4300.9,4300.8,3.2078]
[1757090550860,0.3082,4300.9,4300.8,3.76975005]
[1757090550861,0.5025,4300.9,4300.8,3.76975005]
[1757090552059,0.7048,4300.9,4300.8,3.53175005]
[1757090552262,0.7048,4300.9,4300.8,3.76975005]
[1757090553461,0.5025,4300.9,4300.8,3.76975005]
[1757090558968,0.5025,4301.4,4300.8,3.76975005]
[1757090559164,0.4304,4301.0,4300.9,0.32395005]
[1757090559569,0.6247,4301.0,4300.9,0.32395005]
[1757090561067,0.827,4301.0,4300.9,0.56195005]
[1757090561266,0.827,4301.0,4300.9,0.32395005]
[1757090561870,0.4304,4301.0,4300.9,0.32395005]
[1757090562175,0.4304,4301.0,4300.7,3.2078]
[1757090562575,0.4304,4301.0,4300.8,0.55102189]
[1757090562771,0.4304,4301.0,4300.9,0.31302189]
[1757090565378,0.6247,4301.0,4300.9,0.31302189]
[1757090565770,0.4304,4301.0,4300.9,0.31302189]
[1757090565990,0.3165,4301.5,4300.9,0.31302189]
[1757090566190,0.3082,4301.4,4301.3,3.2078]
[1757090566392,0.3082,4301.4,4301.3,3.52082189]
[1757090567293,0.7048,4301.4,4301.3,3.75882189]
[1757090568192,0.5025,4301.4,4301.3,3.75882189]
[1757090568885,0.3082,4301.4,4301.3,3.75882189]
[1757090569685,0.7064,4301.4,4301.3,3.75882189]
[1757090570088,0.7064,4301.4,4301.3,3.52082189]
[1757090580896,0.2006,4300.9,4300.7,3.2078]
[1757090581097,0.5192,4300.8,4300.7,3.2078]
[1757090581298,0.7168,4300.8,4300.7,3.2078]
[1757090582204,1.29080932,4300.8,4300.7,3.2078]
[1757090582694,1.29080932,4300.8,4298.8,1.04671]
[1757090582695,0.1196,4300.5,4300.1,3.2078]
[1757090582890,0.3982,4300.2,4300.1,3.2078]
[1757090583093,0.7168,4300.2,4300.1,3.2078]
[1757090584893,0.1196,4300.0,4299.8,0.237]
[1757090585096,0.3186,4299.9,4299.8,0.237]
[1757090585386,0.3186,4299.9,4299.6,3.2078]
[1757090585387,0.2006,4299.9,4299.6,3.2078]
[1757090585587,0.5192,4299.7,4299.6,3.2078]
[1757090585791,0.7168,4299.7,4299.6,3.2078]
[1757090585991,0.3186,4299.7,4299.6,3.2078]
[1757090586702,0.1196,4300.0,4299.6,3.2078]
[1757090586902,0.2006,4299.9,4299.6,3.2078]
[1757090587199,0.3186,4299.9,4299.6,3.2078]
[1757090587599,0.1196,4300.0,4299.6,3.2078]
[1757090587797,0.3186,4300.2,4299.6,3.2078]
[1757090587999,0.2006,4300.2,4299.6,3.2078]
[1757090588193,0.5192,4300.4,4299.7,0.237]
[1757090588598,0.1196,4300.0,4299.7,0.237]
[1757090588994,0.3186,4299.9,4299.7,0.237]
[1757090589195,0.3202,4300.0,4299.7,0.237]
[1757090589403,0.2006,4299.9,4299.7,0.237]
[1757090589595,0.3186,4299.8,4299.7,0.237]
[1757090590397,0.3186,4299.7,4299.6,3.2078]
[1757090590596,0.5192,4299.7,4299.6,3.4448]
[1757090590799,0.3186,4299.7,4299.6,3.4448]
[1757090590996,0.7168,4299.7,4299.6,3.2078]
[1757090591201,0.3186,4299.7,4299.6,3.2078]
[1757090591598,0.5192,4299.7,4299.6,3.4448]
[1757090592100,0.7168,4299.7,4299.6,3.4448]
[1757090592601,0.7168,4299.7,4299.6,3.2078]
[1757090592800,0.7168,4299.7,4299.6,3.49698802]
[1757090594006,0.7168,4299.7,4299.6,3.2078]
[1757090594404,0.7168,4299.7,4298.5,32.098]
[1757090594405,0.3186,4299.4,4299.1,3.2078]
[1757090594708,0.5192,4299.3,4299.2,0.28915217]
[1757090595403,0.3186,4299.3,4299.2,0.28912532]
[1757090595999,0.7168,4299.3,4299.2,0.28912532]
[1757090596508,0.3186,4299.2,4299.1,3.4448]
[1757090596712,0.3186,4299.2,4299.1,3.73398347]
[1757090597399,0.1196,4299.5,4299.1,3.73398347]
[1757090597606,0.3186,4299.7,4299.2,0.52178347]
[1757090597809,0.3186,4299.9,4299.6,3.2078]
[1757090598112,0.3186,4299.9,4299.7,0.28904846]
[1757090598300,0.3186,4299.9,4299.6,3.2078]
[1757090598301,0.3186,4299.9,4299.8,0.52604846]
[1757090598502,0.3112,4300.4,4299.8,0.52604846]
[1757090598703,0.5063,4300.4,4300.3,3.2078]
[1757090598903,0.7201,4300.4,4300.3,3.2078]
[1757090599508,0.848,4300.0,4299.9,0.237]
[1757090600008,0.3417,4299.5,4299.4,0.237]
[1757090600212,0.3112,4299.9,4299.4,0.52605244]
[1757090600407,0.3112,4299.9,4299.5,0.28905244]
[1757090600610,0.5063,4299.9,4299.6,0.28905244]
[1757090600907,0.5063,4299.9,4299.7,0.28905244]
[1757090601105,0.4391,4299.5,4299.4,0.237]
[1757090601404,0.848,4299.5,4299.4,0.28897292]
[1757090602207,0.6342,4299.5,4299.4,0.28897292]
[1757090603318,0.3112,4299.5,4299.4,0.28897292]
[1757090604113,0.3112,4299.9,4299.4,0.28897292]
[1757090604309,0.5063,4299.9,4299.8,3.2078]
[1757090604708,0.7201,4299.9,4299.8,3.2078]
[1757090605310,0.5063,4299.9,4299.8,3.49706835]
[1757090605717,0.7201,4299.9,4299.8,3.49706835]
[1757090606514,0.4391,4300.0,4299.8,3.49706835]
[1757090606719,0.3112,4299.9,4299.8,3.2078]
[1757090607019,0.3112,4299.9,4299.8,3.49715906]
[1757090607410,0.5063,4299.9,4299.8,3.49715906]
[1757090607713,0.3112,4299.9,4299.8,3.49715906]
[1757090607916,0.3112,4299.9,4299.8,3.2078]
[1757090609217,0.5063,4299.9,4299.8,3.2078]
[1757090609409,0.7201,4299.9,4299.8,3.2078]
[1757090609605,0.3112,4299.9,4299.8,3.2078]
[1757090610016,0.5063,4299.9,4299.8,3.2078]
[1757090610417,0.7201,4299.9,4299.8,3.2078]
[1757090610609,0.7201,4299.9,4299.8,3.4448]
[1757090611306,0.5063,4299.9,4299.8,3.4448]
[1757090611515,0.3112,4299.9,4299.8,3.4448]
[1757090612914,0.5063,4299.9,4299.8,3.4448]
[1757090614019,0.7201,4299.9,4299.8,3.4448]
[1757090614414,0.7201,4299.9,4299.4,0.237]
[1757090614727,0.7201,4299.4,4299.3,3.2078]
[1757090615020,0.5063,4299.4,4299.3,3.2078]
[1757090615820,0.7201,4299.4,4299.3,3.2078]
[1757090618912,0.7201,4299.4,4299.3,3.4448]
[1757090620215,0.7201,4299.4,4299.3,3.72906811]
[1757090621419,0.7201,4299.4,4299.3,3.49206811]
[1757090622522,0.5063,4299.4,4299.3,3.49206811]
[1757090622719,0.3112,4299.4,4299.3,3.49206811]
[1757090622920,0.3112,4299.9,4299.3,3.49206811]
[1757090623120,0.3112,4299.9,4299.8,3.2078]
[1757090623318,0.3112,4299.9,4299.8,3.49206811]
[1757090624022,0.1279,4300.0,4299.8,3.49206811]
[1757090624324,0.4391,4300.0,4299.9,0.28426811]
[1757090625625,0.6342,4300.0,4299.9,0.28426811]
[1757090625826,0.4391,4300.0,4299.9,0.28426811]
[1757090626220,0.6342,4300.0,4299.9,0.28426811]
[1757090626523,0.4391,4300.0,4299.9,0.28426811]
[1757090627323,0.1196,4300.5,4299.9,0.28407377]
[1757090627630,1.31317016,4300.4,4300.0,0.28407377]
[1757090627819,0.5063,4300.4,4300.1,0.28407377]
[1757090628019,0.5063,4300.4,4300.2,0.28407377]
[1757090628220,0.3221,4300.0,4299.8,3.4448]
[1757090628414,0.3221,4300.0,4299.9,0.28406799]
[1757090628928,0.8118,4300.0,4299.9,0.28406799]
[1757090633524,1.04436001,4300.0,4299.9,0.28406799]
[1757090633837,0.8118,4300.0,4299.9,0.28406799]
[1757090635325,0.8118,4300.0,4299.5,0.237]
[1757090635528,0.8118,4300.0,4299.6,0.28410939]
[1757090635722,0.8118,4300.0,4299.7,0.28410939]
[1757090635921,0.8118,4300.0,4299.8,0.28410939]
[1757090636221,0.6839,4299.4,4299.3,3.2078]
[1757090636426,0.6839,4299.4,4299.3,3.49195454]
[1757090638531,0.2954,4299.4,4299.3,3.49195454]
[1757090638727,0.2954,4299.7,4299.3,3.49195454]
[1757090638933,0.1277,4299.5,4299.4,0.54348819]
[1757090639134,0.4231,4299.5,4299.4,0.54348819]
[1757090639333,0.6173,4299.5,4299.4,0.54348819]
[1757090639626,0.8116,4299.5,4299.4,0.54348819]
[1757090640425,0.6173,4299.5,4299.4,0.54348819]
[1757090641226,0.2954,4299.9,4299.4,0.54348819]
[1757090641537,0.2954,4299.9,4299.8,3.2078]
[1757090641738,0.2954,4299.9,4299.8,3.51428819]
[1757090643839,0.1279,4300.0,4299.8,3.51428819]
[1757090644044,0.4233,4300.0,4299.9,0.54348819]
[1757090644344,0.00348744,4300.4,4299.9,0.54348819]
[1757090644539,0.49308744,4300.4,4300.3,3.2078]
[1757090644740,0.68738744,4300.4,4300.3,3.51428819]
[1757090645543,0.49308744,4300.4,4300.3,3.51428819]
[1757090646637,0.68738744,4300.4,4300.3,3.51428819]
[1757090647143,0.49308744,4300.4,4300.3,3.51428819]
[1757090647645,0.49308744,4300.4,4300.3,3.50607782]
[1757090647841,0.29888744,4300.4,4300.3,3.50607782]
[1757090648640,0.49308744,4300.4,4300.3,3.50607782]
[1757090649945,0.29888744,4300.4,4300.3,3.82609704]
[1757090650639,0.00348744,4300.4,4300.3,3.82609704]
[1757090652642,0.29888744,4300.4,4300.3,3.82609704]
[1757090653040,0.49308744,4300.4,4300.3,3.82609704]
[1757090653242,0.68738744,4300.4,4300.3,4.06309704]
[1757090654138,0.68738744,4300.4,4300.3,3.50607782]
[1757090654736,0.68738744,4300.4,4300.3,0.29827782]
[1757090655247,0.6839,4299.9,4299.8,3.2078]
[1757090655440,0.6839,4299.9,4299.8,3.6133]
[1757090657644,0.6839,4299.9,4299.8,3.4067]
[1757090658646,0.6839,4299.9,4299.8,3.6133]
[1757090660347,0.6839,4299.9,4299.8,3.2078]
[1757090660850,0.6839,4299.9,4299.8,3.4147]
[1757090661249,0.6839,4299.9,4299.8,3.2078]
[1757090662349,4.6839,4299.9,4299.8,3.2078]
[1757090662853,4.6839,4299.9,4299.8,3.4147]
[1757090663046,0.6839,4299.9,4299.8,3.4147]
[1757090663248,0.6839,4299.9,4299.8,3.6228]
[1757090664354,0.2954,4299.9,4299.8,3.9214]
[1757090664657,0.24048744,4300.4,4299.9,0.2986]
[1757090664957,0.64568744,4300.4,4300.3,0.415]
[1757090665142,1.21860083,4300.4,4300.3,0.7136]
[1757090665343,0.96528744,4300.4,4300.3,0.415]
[1757090665543,0.32308744,4300.4,4300.3,0.7136]
[1757090665850,0.8519,4300.0,4299.9,0.2069]
[1757090667247,0.8519,4300.0,4299.9,0.71084775]
[1757090667653,0.8519,4300.0,4299.9,0.29584775]
[1757090670554,0.8519,4300.0,4299.9,0.71084775]
[1757090672963,0.8519,4300.0,4299.9,1.00944775]
[1757090673168,0.5281,4300.0,4299.9,1.00944775]
[1757090673367,0.6552,4300.0,4299.9,1.00944775]
[1757090674371,0.5281,4300.0,4299.9,1.00944775]
[1757090675173,0.8519,4300.0,4299.9,0.71084775]
[1757090676367,0.8519,4300.0,4299.9,1.00944775]
[1757090676766,0.6552,4300.0,4299.9,1.00944775]
[1757090677261,0.3196,4300.0,4299.9,1.00944775]
[1757090677963,0.3196,4300.3,4299.9,0.71084775]
[1757090678171,0.5281,4300.3,4300.2,0.7136]
[1757090678370,0.5281,4300.3,4300.2,1.00944775]
[1757090678872,0.3196,4300.3,4300.2,1.00944775]
[1757090679170,0.00348744,4300.4,4300.3,0.7136]
[1757090679171,0.32308744,4300.4,4300.3,0.7136]
[1757090679467,0.32308744,4300.4,4300.3,1.00944775]
[1757090679666,0.32308744,4300.4,4300.3,4.21724775]
[1757090679864,0.53158744,4300.4,4300.3,4.21724775]
[1757090683171,1.10553528,4300.4,4300.3,4.21724775]
[1757090685571,1.30223528,4300.4,4300.3,3.91864775]
[1757090686381,1.30223528,4300.4,4300.3,0.29584775]
[1757090688880,1.30223528,4300.4,4300.3,0.50274775]
[1757090689084,1.30223528,4300.4,4300.3,0.70634775]
[1757090689375,1.30223528,4300.4,4300.3,1.00474775]
[1757090689581,0.89703528,4300.4,4300.3,1.00474775]
[1757090689773,1.09853528,4300.4,4300.3,1.00474775]
[1757090690173,1.29423528,4300.4,4300.3,1.00474775]
[1757090690375,1.29423528,4300.4,4300.3,0.7108162]
[1757090690885,1.29435233,4300.4,4300.3,1.0092162]
[1757090691182,0.89715233,4300.4,4300.3,1.0092162]
[1757090691574,1.09865233,4300.4,4300.3,1.0092162]
[1757090692283,1.09865233,4300.4,4300.3,1.00932994]
[1757090693885,1.09865233,4300.4,4300.3,4.21712994]
[1757090694086,0.00348744,4300.4,4300.3,4.21712994]
[1757090696381,0.3094,4301.2,4301.1,0.4085]
[1757090696580,0.3094,4301.2,4301.1,1.00732994]
[1757090696887,0.3094,4301.4,4301.3,0.4085]
[1757090697084,0.3094,4301.4,4301.3,1.00732994]
[1757090697379,0.7066,4301.4,4301.3,0.70892994]
[1757090697580,0.7066,4301.4,4301.3,1.00732994]
[1757090698484,0.5109,4301.4,4301.3,1.00732994]
[1757090698979,0.5109,4301.4,4301.3,0.7069]
[1757090699186,0.5109,4301.4,4301.3,1.0115217]
[1757090699688,0.3094,4301.4,4301.3,1.0115217]
[1757090700082,0.5109,4301.4,4301.3,1.0115217]
[1757090700280,0.7066,4301.4,4301.3,0.3046217]
[1757090700684,0.7066,4301.4,4301.3,0.30455486]
[1757090701189,0.7066,4301.4,4301.3,0.50945486]
[1757090703391,0.7066,4301.4,4301.3,0.30455486]
[1757090704292,0.7066,4301.4,4300.5,3.2078]
[1757090704293,0.4308,4301.0,4300.5,3.2078]
[1757090704489,0.7066,4300.6,4300.5,3.2078]
[1757090704792,0.7066,4300.6,4300.5,3.7303]
[1757090704994,0.7066,4300.6,4300.5,3.9339]
[1757090707892,0.7066,4300.6,4300.5,3.6163]
[1757090708290,0.7066,4300.6,4300.5,3.4127]
[1757090708499,0.7066,4300.6,4300.5,3.2078]
[1757090710088,0.7066,4300.6,4300.5,3.4127]
[1757090712886,0.7066,4300.3,4300.2,0.5225]
[1757090713088,0.5186,4300.0,4299.9,3.4127]
[1757090713286,0.7066,4300.0,4299.9,3.9339]
[1757090714288,0.5109,4300.0,4299.9,3.9339]
[1757090714699,0.7066,4300.0,4299.9,3.9339]
[1757090715601,0.828,4300.0,4299.9,3.4127]
[1757090715903,0.828,4300.0,4299.6,0.3176]
[1757090716089,0.828,4300.0,4299.5,0.0994]
[1757090716294,0.828,4300.0,4299.9,0.5225]
[1757090716599,0.7066,4300.0,4299.9,0.7261]
[1757090717002,0.7066,4300.0,4299.5,0.1176]
[1757090717003,0.237,4300.3,4300.0,0.1176]
[1757090717200,0.5109,4300.3,4300.2,0.7261]
[1757090717399,0.237,4300.5,4300.2,0.4085]
[1757090717598,0.5109,4300.9,4300.6,0.3176]
[1757090717805,0.5109,4300.9,4300.8,0.4085]
[1757090718097,3.2078,4301.4,4300.8,0.7261]
[1757090718302,0.88540276,4301.3,4301.2,0.4016]
[1757090718497,1.08490276,4301.3,4301.2,0.7177]
[1757090718696,0.5111,4301.3,4301.2,0.7177]
[1757090720004,0.1995,4301.3,4301.2,0.7177]
[1757090720307,0.3116,4301.5,4301.3,0.3161]
[1757090720505,0.5111,4301.4,4301.3,0.7177]
[1757090720704,0.7056,4301.4,4301.3,0.7177]
[1757090720906,0.5486,4301.6,4301.4,0.3161]
[1757090721213,0.7481,4301.6,4301.5,0.7177]
[1757090721504,0.9426,4301.6,4301.5,0.7177]
[1757090721704,0.7056,4301.6,4301.5,0.7177]
[1757090723012,0.5218,4301.5,4301.4,0.2062]
[1757090723306,0.8334,4301.5,4301.4,0.2062]
[1757090723512,0.8334,4301.5,4300.5,0.1176]
[1757090723715,0.5218,4301.5,4300.6,0.28906859]
[1757090723904,0.1995,4301.0,4300.9,3.6094]
[1757090724103,0.1995,4301.0,4300.9,4.21456859]
[1757090725110,0.5111,4301.0,4300.9,4.21456859]
[1757090725507,0.1995,4301.0,4300.9,4.21456859]
[1757090725703,0.1278,4301.5,4300.9,3.89846859]
[1757090725898,0.1995,4301.1,4301.0,1.12996859]
[1757090726101,0.7056,4301.1,4301.0,0.49526859]
[1757090726401,0.1278,4301.5,4300.4,3.7609]
[1757090726402,0.5218,4301.0,4300.4,3.7609]
[1757090726602,0.394,4300.6,4300.5,0.69074569]
[1757090726801,0.7056,4300.6,4300.5,0.69074569]
[1757090727003,0.7056,4300.6,4300.5,0.49534569]
[1757090727204,0.7056,4300.6,4300.5,1.00684569]
[1757090728901,0.7056,4300.6,4300.5,0.2062]
[1757090729108,0.7056,4300.6,4300.5,1.00748858]
[1757090729308,0.7056,4300.6,4300.5,1.13068858]
[1757090729309,0.1995,4300.6,4300.5,1.13068858]
[1757090729507,3.2078,4301.4,4301.0,0.4016]
[1757090729508,0.9426,4301.1,4301.0,0.4016]
[1757090729810,1.51655463,4301.1,4301.0,0.7177]
[1757090730209,1.51655463,4301.1,4301.0,0.2062]
[1757090730412,0.5111,4300.6,4300.5,0.5248]
[1757090730709,0.5111,4300.6,4300.5,0.81455681]
[1757090730915,0.5111,4300.6,4300.5,1.13065681]
[1757090731410,0.3116,4300.9,4300.6,0.3161]
[1757090731715,0.7056,4300.9,4300.8,0.7177]
[1757090731915,0.7056,4300.9,4300.8,1.00745681]
[1757090733517,0.7056,4301.8,4301.7,0.5223]
[1757090733811,0.1995,4301.2,4301.1,0.7177]
[1757090734108,0.7056,4301.2,4301.1,1.00762062]
[1757090734306,0.7056,4301.2,4301.1,0.28992062]
[1757090734507,0.394,4300.9,4300.8,0.5223]
[1757090734715,0.7056,4300.9,4300.8,0.81227447]
[1757090735111,0.7056,4300.9,4300.8,0.28997447]
[1757090735811,0.7056,4300.9,4300.8,0.49617447]
[1757090736407,0.7056,4300.9,4300.8,0.81227447]
[1757090736707,0.7056,4300.9,4300.8,1.00767447]
[1757090737107,0.8334,4301.5,4301.4,0.7177]
[1757090737314,1.51553926,4301.5,4301.4,0.7177]
[1757090737812,0.237,4301.6,4301.4,0.7177]
[1757090738015,0.237,4301.6,4301.5,0.8409]
[1757090738215,3.2078,4302.2,4302.1,0.5223]
[1757090738524,1.25165862,4302.4,4302.2,0.3161]
[1757090738714,0.237,4302.3,4302.2,0.5223]
[1757090738912,0.237,4302.3,4302.2,0.7177]
[1757090739513,0.237,4302.3,4302.2,0.3161]
[1757090740116,0.237,4302.3,4302.2,0.5223]
[1757090740420,0.237,4302.3,4302.2,0.3161]
[1757090741519,32.104,4302.5,4302.1,0.3161]
[1757090741723,0.237,4302.4,4302.1,0.3161]
[1757090741917,32.104,4302.5,4302.2,0.3161]
[1757090742113,0.237,4302.4,4302.0,0.3294]
[1757090742314,0.237,4302.4,4302.2,0.5223]
[1757090742515,0.237,4302.4,4302.3,0.3161]
[1757090743020,4.0,4302.4,4302.0,0.1232]
[1757090743223,0.237,4302.4,4302.1,0.3161]
[1757090743420,32.104,4302.5,4302.0,0.1232]
[1757090743722,0.237,4302.4,4302.3,0.7177]
[1757090744622,32.104,4302.5,4302.4,0.3161]
[1757090744822,32.341,4302.5,4302.4,0.3161]
[1757090747425,32.104,4302.5,4302.4,0.3161]
[1757090747718,32.341,4302.5,4302.0,0.1232]
[1757090747916,0.394,4302.1,4302.0,0.3294]
[1757090748117,0.631,4302.1,4302.0,0.5248]
[1757090748520,0.237,4302.1,4302.0,0.5248]
[1757090748724,0.4406,4302.1,4302.0,0.5248]
[1757090748925,32.104,4302.5,4302.0,0.5248]
[1757090749121,0.04046937,4302.7,4302.0,0.5248]
[1757090749328,0.04046937,4302.7,4302.6,0.4269]
[1757090749623,0.237,4302.8,4302.6,0.4269]
[1757090749824,0.237,4302.8,4302.7,0.3175]
[1757090750025,3.0,4303.0,4302.9,0.7444]
[1757090750225,3.80745371,4303.0,4302.9,3.9522]
[1757090750428,3.237,4303.0,4302.9,3.9522]
[1757090751324,3.0,4303.0,4302.9,3.9522]
[1757090751921,3.237,4303.0,4302.9,3.9522]
[1757090754422,3.0,4303.0,4302.9,3.9522]
[1757090754629,3.237,4303.0,4302.9,3.9522]
[1757090758521,3.0,4303.0,4302.9,3.9522]
[1757090767533,2.5089545,4303.7,4303.6,0.4269]
[1757090767733,2.5089545,4303.7,4303.6,3.9522]
[1757090770031,2.7125545,4303.7,4303.6,3.9522]
[1757090770227,2.5089545,4303.7,4303.6,3.9522]
[1757090771031,2.5089545,4303.7,4303.6,4.1882]
[1757090772238,2.5089545,4303.7,4303.6,4.51760821]
[1757090773431,1.7177545,4303.7,4303.6,8.93582821]
[1757090773733,0.12,4305.0,4303.6,8.05959546]
[1757090773928,0.7168,4304.6,4304.5,3.2078]
[1757090775532,0.8368,4304.0,4303.9,0.4481]
[1757090775733,0.8368,4304.0,4303.9,0.75086137]
[1757090775935,0.8368,4304.0,4303.9,0.98686137]
[1757090776340,0.8368,4304.0,4303.9,0.32396137]
[1757090776534,0.8368,4304.0,4303.9,0.75086137]
[1757090776744,0.8368,4304.0,4303.9,0.7444]
[1757090777044,0.12,4304.5,4304.4,0.7444]
[1757090777045,0.6245,4304.5,4304.4,0.7444]
[1757090777341,0.8368,4304.5,4304.4,3.74397509]
[1757090777536,0.8368,4304.5,4304.4,3.53190622]
[1757090778040,0.8368,4304.5,4304.4,3.53191387]
[1757090779349,0.8368,4304.5,4304.4,3.74401387]
[1757090779854,0.8368,4304.5,4304.4,3.74021387]
[1757090779855,0.8253,4304.5,4304.4,3.74021387]
[1757090780144,0.8253,4304.5,4304.4,3.53191387]
[1757090780341,0.8253,4304.5,4304.4,3.74021387]
[1757090780838,0.8253,4304.5,4304.4,3.53191387]
[1757090781643,1.39328879,4304.5,4304.4,3.74021387]
[1757090782038,1.39328879,4304.5,4304.4,4.24591387]
[1757090782245,1.39328879,4304.5,4304.4,3.4161]
[1757090782740,1.39328879,4304.5,4304.4,3.2078]
[1757090782939,0.5295,4304.0,4303.9,3.4161]
[1757090783144,0.8298,4304.0,4303.9,3.93679776]
[1757090783350,1.39778879,4304.0,4303.9,4.24659776]
[1757090783648,1.07548879,4304.0,4303.9,4.24659776]
[1757090783846,1.20058879,4304.0,4303.9,4.24659776]
[1757090784245,1.27268879,4304.0,4303.9,4.24659776]
[1757090784442,1.39778879,4304.0,4303.9,3.93679776]
[1757090784837,1.39778879,4304.0,4303.9,4.24659776]
[1757090785040,0.86828879,4304.0,4303.9,4.24659776]
[1757090786343,1.07548879,4304.0,4303.9,4.24659776]
[1757090786544,1.39778879,4304.0,4303.9,4.24659776]
[1757090788349,1.39778879,4304.0,4303.9,3.93679776]
[1757090788852,6.08145862,4304.0,4303.4,0.236]
[1757090789151,0.8298,4303.5,4303.4,0.6402]
[1757090789341,1.39778879,4303.5,4303.4,1.27014207]
[1757090789744,0.56798879,4303.5,4303.4,1.03414207]
[1757090790052,1.61275862,4304.0,4303.4,0.72434207]
[1757090790053,0.56798879,4303.6,4303.4,0.72434207]
[1757090790252,0.56798879,4303.5,4303.4,0.4042]
[1757090790447,0.56798879,4303.5,4303.4,0.960336]
[1757090790651,0.56798879,4303.8,4303.4,1.56120366]
[1757090790854,0.56798879,4303.7,4303.6,0.714]
[1757090791146,0.3003,4303.8,4303.7,0.714]
[1757090791351,0.56873539,4303.8,4303.7,0.7243092]
[1757090791545,0.3003,4304.1,4303.7,1.0341092]
[1757090791851,0.5075,4304.1,4304.0,3.9218]
[1757090792252,0.5075,4304.1,4304.0,4.21295031]
[1757090792949,0.3003,4304.4,4304.0,3.90315031]
[1757090793144,0.7047,4304.3,4304.2,0.4042]
[1757090793352,0.7047,4304.3,4304.2,0.69535031]
[1757090794547,0.12,4305.0,4304.2,1.00515031]
[1757090794752,0.5075,4304.6,4304.5,3.9218]
[1757090794956,1.0795514,4304.6,4304.5,3.9218]
[1757090795457,1.2767514,4304.6,4304.5,3.612]
[1757090796759,1.2767514,4304.6,4304.5,3.4161]
[1757090796955,1.2767514,4304.6,4304.5,3.612]
[1757090797544,1.2767514,4304.6,4304.5,3.9218]
[1757090798056,1.2767514,4304.6,4304.1,0.236]
[1757090798057,0.1251,4304.5,4304.1,0.236]
[1757090798256,0.7047,4304.2,4304.1,0.6402]
[1757090798559,0.7047,4304.2,4304.1,0.93147696]
[1757090798753,0.1251,4304.5,4304.1,1.24127696]
[1757090799056,0.3003,4304.4,4304.3,0.714]
[1757090799354,1.0607,4305.0,4304.9,0.2083]
[1757090799656,1.63548033,4305.0,4304.9,0.2083]
[1757090800657,1.39948033,4305.0,4304.9,0.4042]
[1757090800856,0.57478033,4305.0,4304.9,0.71313935]
[1757090801350,0.87508033,4305.0,4304.9,0.71313935]
[1757090801657,1.08228033,4305.0,4304.9,0.71313935]
[1757090801960,1.20738033,4305.0,4304.9,0.71313935]
[1757090802651,0.57478033,4305.0,4304.9,0.71313935]
[1757090803051,0.5075,4305.4,4305.3,0.2083]
[1757090803252,1.27917292,4305.4,4305.3,3.612]
[1757090803451,1.27917292,4305.4,4305.3,3.9218]
[1757090804852,1.27917292,4305.4,4305.3,3.612]
[1757090805860,1.27917292,4305.4,4305.3,3.9218]
[1757090806067,1.08197292,4305.4,4305.3,3.9218]
[1757090806560,1.27917292,4305.4,4305.3,3.9218]
[1757090806760,1.27917292,4305.4,4305.3,3.612]
[1757090806960,1.27917292,4305.4,4305.3,3.4161]
[1757090808466,1.27917292,4305.4,4305.3,3.2078]
[1757090809760,1.27917292,4305.4,4304.6,0.3199]
[1757090809966,0.5119,4304.7,4304.6,0.7275]
[1757090810165,0.7208,4304.7,4304.6,0.4076]
[1757090810565,0.5119,4304.7,4304.6,0.7275]
[1757090810761,0.7208,4304.7,4304.6,0.4076]
[1757090810968,0.1278,4305.0,4304.7,0.7275]
[1757090810969,0.5119,4304.8,4304.7,0.7275]
[1757090811361,0.5119,4304.8,4304.7,3.9353]
[1757090811558,0.1278,4305.0,4304.7,3.9353]
[1757090811765,0.88363333,4304.9,4304.8,0.7275]
[1757090812667,0.57393333,4304.9,4304.8,4.7275]
[1757090812862,0.8459,4305.5,4305.4,0.4076]
[1757090813069,1.41977198,4305.5,4305.4,0.4076]
[1757090813971,1.41977198,4305.5,4305.4,0.7275]
[1757090814272,1.41977198,4305.5,4305.4,0.4076]
[1757090815268,1.41977198,4305.5,4304.9,0.3199]
[1757090815566,0.5119,4305.0,4304.9,0.7275]
[1757090816575,0.8486,4305.0,4304.9,0.4076]
[1757090817470,1.42250152,4305.0,4304.9,0.196]
[1757090817877,1.42250417,4305.0,4304.9,0.196]
[1757090818364,1.42250417,4305.0,4304.9,0.4076]
[1757090818766,0.8486,4305.0,4304.9,0.4076]
[1757090818968,1.42252974,4305.0,4304.9,0.4076]
[1757090819574,0.57392974,4305.0,4304.9,0.4076]
[1757090819877,1.42252974,4305.0,4304.9,0.4076]
[1757090821279,1.42252974,4305.0,4304.9,0.196]
[1757090821976,1.42252974,4305.0,4304.7,3.2078]
[1757090821977,0.3097,4304.9,4304.7,3.2078]
[1757090822178,1.29472974,4304.8,4304.7,3.2078]
[1757090822580,1.29472974,4304.8,4303.2,0.00348744]
[1757090822581,0.3097,4304.4,4304.2,3.2078]
[1757090822781,1.29472974,4304.3,4304.2,3.2078]
[1757090823288,1.29472974,4304.3,4304.2,3.4038]
[1757090823589,0.8486,4304.0,4303.9,3.2078]
[1757090823789,1.42252974,4304.0,4303.9,3.2078]
[1757090824779,0.4111,4303.6,4303.5,3.2078]
[1757090825085,1.29472974,4303.6,4303.5,3.4038]
[1757090825285,0.88362974,4303.6,4303.5,3.9353]
[1757090825481,0.57392974,4303.6,4303.5,3.9957]
[1757090825684,0.3097,4304.0,4303.5,4.51548623]
[1757090825885,0.88410569,4303.9,4303.8,0.7275]